[Event "23rd Hoogeveen Open 2019"]
[Site "Hoogeveen"]
[Date "2019.10.19"]
[Round "9"]
[White "Seul, Georg"]
[Black "Van Dorp, Folke"]
[Result "1-0"]
[ECO "B50"]
[WhiteElo "2411"]
[BlackElo "2086"]
[Annotator "ChessBase"]
[PlyCount "151"]
[EventDate "2019.10.19"]
[EventType "swiss"]
[EventCountry "NED"]
[SourceTitle "playchess.com"]
[Source "ChessBase"]
[SourceQuality "1"]
[TimeControl "40/5400+30:1800+30"]

1. e4 {[%emt 0:00:00]} c5 {[%emt 0:00:00]} 2. Nf3 {[%emt 0:00:00]} d6 {[%emt 0:00:00]} 3. Bc4 {[%emt 0:00:10]} e6 {[%emt 0:00:11]} 4. O-O {[%emt 0:00:15]} Nf6 {[%emt 0:01:26]} 5. Re1 {[%emt 0:00:11]} Be7 {[%emt 0:01:37]} 6. Bb3 {[%emt 0:00:12]} a6 {[%emt 0:02:37]} 7. c3 {[%emt 0:00:22]} b5 {[%emt 0:03:20]} 8. d4 {[%emt 0:01:23]} Bb7 {[%emt 0:02:09]} 9. Nbd2 {[%emt 0:02:15]} Nbd7 {[%emt 0:05:04]} 10. Bc2 {[%emt 0:01:50]} cxd4 {[%emt 0:08:08]} 11. cxd4 {[%emt 0:00:18]} O-O {[%emt 0:00:58]} 12. Nf1 {[%emt 0:02:47]} Re8 {[%emt 0:09:32]} 13. Ng3 {[%emt 0:02:46]} Nf8 {[%emt 0:03:02]} 14. Bd3 {[%emt 0:05:45]} Ng6 {[%emt 0:07:12]} 15. Bd2 {[%emt 0:12:34]} Qd7 {[%emt 0:09:51]} 16. Qb3 {[%emt 0:13:13]} Bc6 {[%emt 0:08:24]} 17. Rad1 {[%emt 0:03:48]} Qb7 {[%emt 0:03:32]} 18. Qc2 {[%emt 0:09:18]} Rac8 {[%emt 0:01:33]} 19. Qb1 {[%emt 0:00:09]} Red8 {[%emt 0:00:34]} 20. Bg5 {[%emt 0:04:51]} Nf8 {[%emt 0:09:40]} 21. Rc1 {[%emt 0:12:45]} h6 {[%emt 0:02:50]} 22. Bd2 {[%emt 0:00:36]} Qd7 {[%emt 0:03:10]} 23. Rc2 {[%emt 0:07:09]} Ba8 {[%emt 0:01:23]} 24. Rxc8 {[%emt 0:00:22]} Rxc8 {[%emt 0:00:55]} 25. Qd1 {[%emt 0:00:11]} Qb7 {[%emt 0:01:16]} 26. Qe2 {[%emt 0:00:22]} N6h7 {[%emt 0:04:16]} 27. a4 {[%emt 0:02:23]} Rb8 {[%emt 0:01:01]} 28. axb5 {[%emt 0:00:06]} axb5 {[%emt 0:00:19]} 29. Ra1 {[%emt 0:00:48]} Qd7 {[%emt 0:00:31]} 30. b4 {[%emt 0:02:34]} Bc6 {[%emt 0:00:57]} 31. h3 {[%emt 0:00:44]} Qb7 {[%emt 0:01:24]} 32. Ra5 {[%emt 0:03:25]} Bd7 {[%emt 0:01:23]} 33. Qf1 {[%emt 0:02:10]} Nf6 {[%emt 0:01:26]} 34. Qa1 {[%emt 0:00:47]} Bd8 {[%emt 0:01:40]} 35. Ra7 {[%emt 0:01:01]} Qc8 {[%emt 0:00:06]} 36. Ra6 {[%emt 0:05:16]} Bb6 {[%emt 0:00:50]} 37. Ra3 {[%emt 0:00:58]} Qb7 {[%emt 0:01:11]} 38. Bf4 {[%emt 0:00:40]} Ne8 {[%emt 0:00:56]} 39. Nh5 {[%emt 0:02:26]} Ng6 {[%emt 0:02:04]} 40. Bd2 {[%emt 0:00:34]} Bc6 {[%emt 0:00:40]} 41. Qb1 {[%emt 0:19:19]} Bd8 {[%emt 0:05:06]} 42. Qe1 {[%emt 0:06:08]} Ra8 {[%emt 0:04:10]} 43. Rxa8 {[%emt 0:00:18]} Qxa8 {[%emt 0:00:06]} 44. d5 {[%emt 0:00:52]} exd5 {[%emt 0:01:39]} 45. exd5 {[%emt 0:00:04]} Bd7 {[%emt 0:00:16]} 46. Bf5 {[%emt 0:01:17]} Qb7 {[%emt 0:05:59]} 47. Bc3 {[%emt 0:00:39]} Ne7 {[%emt 0:01:10]} 48. Bxd7 {[%emt 0:01:37]} Qxd7 {[%emt 0:00:06]} 49. Bxg7 {[%emt 0:00:30]} Qf5 {[%emt 0:04:51]} 50. Ng3 {[%emt 0:00:08]} Qg6 {[%emt 0:00:17]} 51. Bb2 {[%emt 0:01:56]} Ng7 {[%emt 0:05:13]} 52. Bxg7 {[%emt 0:01:55]} Qxg7 {[%emt 0:01:12]} 53. Qe4 {[%emt 0:00:15]} Qg6 {[%emt 0:02:42]} 54. Nd4 {[%emt 0:00:41]} Qxe4 {[%emt 0:02:14]} 55. Nxe4 {[%emt 0:00:04]} Nxd5 {[%emt 0:00:20]} 56. Nxb5 {[%emt 0:00:19]} Nxb4 {[%emt 0:00:10]} 57. Nbxd6 {[%emt 0:00:09]} Kg7 {[%emt 0:01:52]} 58. g4 {[%emt 0:01:33]} Nd5 {[%emt 0:00:39]} 59. Kg2 {[%emt 0:00:45]} Bc7 {[%emt 0:00:33]} 60. h4 {[%emt 0:00:56]} Bxd6 {[%emt 0:01:58]} 61. Nxd6 {[%emt 0:00:05]} Ne7 {[%emt 0:00:25]} 62. Kf3 {[%emt 0:00:36]} Ng8 {[%emt 0:01:58]} 63. Kf4 {[%emt 0:00:57]} Kf6 {[%emt 0:00:07]} 64. Nf5 {[%emt 0:00:10]} Kg6 {[%emt 0:00:20]} 65. h5+ {[%emt 0:00:18]} Kh7 {[%emt 0:00:39]} 66. g5 {[%emt 0:00:53]} hxg5+ {[%emt 0:00:12]} 67. Kxg5 {[%emt 0:00:03]} Kh8 {[%emt 0:00:42]} 68. Nh6 {[%emt 0:00:44]} f6+ {[%emt 0:01:16]} 69. Kg6 {[%emt 0:00:06]} Ne7+ {[%emt 0:00:28]} 70. Kxf6 {[%emt 0:00:04]} Nd5+ {[%emt 0:00:21]} 71. Kg5 {[%emt 0:00:30]} Kh7 {[%emt 0:00:16]} 72. Ng4 {[%emt 0:00:09]} Ne7 {[%emt 0:00:15]} 73. f4 {[%emt 0:00:24]} Kh8 {[%emt 0:00:25]} 74. f5 {[%emt 0:00:57]} Ng8 {[%emt 0:00:35]} 75. h6 {[%emt 0:00:27]} Nf6 {[%emt 0:00:16]} 76. Kxf6 {[%emt 0:00:07]} 1-0

[Event "23rd Hoogeveen Open 2019"]
[Site "Hoogeveen"]
[Date "2019.10.19"]
[Round "9"]
[White "Mijnster, Niels"]
[Black "Basso, Pier Luigi"]
[Result "0-1"]
[ECO "D47"]
[WhiteElo "2145"]
[BlackElo "2575"]
[Annotator "ChessBase"]
[PlyCount "56"]
[EventDate "2019.10.19"]
[EventType "swiss"]
[EventCountry "NED"]
[SourceTitle "playchess.com"]
[Source "ChessBase"]
[SourceQuality "1"]
[TimeControl "40/5400+30:1800+30"]

1. d4 {[%emt 0:00:00]} d5 {[%emt 0:13:58]} 2. c4 {[%emt 0:00:28]} c6 {[%emt 0:01:10]} 3. Nf3 {[%emt 0:00:30]} Nf6 {[%emt 0:00:15]} 4. Nc3 {[%emt 0:00:40]} e6 {[%emt 0:00:07]} 5. e3 {[%emt 0:00:06]} Nbd7 {[%emt 0:00:06]} 6. Bd3 {[%emt 0:00:45]} dxc4 {[%emt 0:00:07]} 7. Bxc4 {[%emt 0:00:01]} b5 {[%emt 0:00:09]} 8. Bd3 {[%emt 0:01:13]} Bb7 {[%emt 0:00:07]} 9. e4 {[%emt 0:02:22]} b4 {[%emt 0:00:39]} 10. Na4 {[%emt 0:07:54]} c5 {[%emt 0:00:10]} 11. e5 {[%emt 0:09:00]} Nd5 {[%emt 0:00:29]} 12. dxc5 {[%emt 0:00:36]} Nxc5 {[%emt 0:00:38]} 13. Nxc5 {[%emt 0:01:35]} Bxc5 {[%emt 0:00:03]} 14. Bb5+ {[%emt 0:02:13]} Kf8 {[%emt 0:00:10]} 15. O-O {[%emt 0:00:16]} h6 {[%emt 0:01:20]} 16. Qe2 {[%emt 0:13:01]} g6 {[%emt 0:05:39]} 17. Bd2 {[%emt 0:06:32]} Qb6 {[%emt 0:03:52]} 18. Rac1 {[%emt 0:05:17]} Kg7 {[%emt 0:01:43]} 19. Bc4 {[%emt 0:12:52]} Rad8 {[%emt 0:01:41]} 20. Ne1 {[%emt 0:04:49]} Ne7 {[%emt 0:09:12]} 21. Nd3 {[%emt 0:08:51]} Qc6 {[%emt 0:01:45]} 22. Qg4 {[%emt 0:00:50]} Rd4 {[%emt 0:02:41]} 23. Qh3 {[%emt 0:11:52]} Nf5 {[%emt 0:12:22]} 24. Nxc5 {[%emt 0:04:40]} Qxc5 {[%emt 0:03:29]} 25. Be3 {[%emt 0:02:00]} Nxe3 {[%emt 0:00:34]} 26. fxe3 {[%emt 0:00:02]} Rxc4 {[%emt 0:01:07]} 27. Rxf7+ {[%emt 0:00:15]} Kxf7 {[%emt 0:00:19]} 28. Rf1+ {[%emt 0:00:04]} Kg7 {[%emt 0:02:03]} 0-1

[Event "23rd Hoogeveen Open 2019"]
[Site "Hoogeveen"]
[Date "2019.10.19"]
[Round "9"]
[White "Sparenberg, Erik"]
[Black "Werle, Jan"]
[Result "0-1"]
[ECO "D02"]
[WhiteElo "2142"]
[BlackElo "2544"]
[Annotator "ChessBase"]
[PlyCount "92"]
[EventDate "2019.10.19"]
[EventType "swiss"]
[EventCountry "NED"]
[SourceTitle "playchess.com"]
[Source "ChessBase"]
[SourceQuality "1"]
[TimeControl "40/5400+30:1800+30"]

1. Nf3 {[%emt 0:00:00]} Nf6 {[%emt 0:00:00]} 2. g3 {[%emt 0:00:13]} d5 {[%emt 0:01:15]} 3. Bg2 {[%emt 0:00:09]} Nbd7 {[%emt 0:00:29]} 4. d4 {[%emt 0:02:55]} e6 {[%emt 0:03:54]} 5. O-O {[%emt 0:00:13]} b5 {[%emt 0:00:30]} 6. a4 {[%emt 0:03:43]} b4 {[%emt 0:00:58]} 7. c4 {[%emt 0:02:28]} bxc3 {[%emt 0:03:07]} 8. bxc3 {[%emt 0:11:53]} Ba6 {[%emt 0:03:27]} 9. Re1 {[%emt 0:05:31]} Be7 {[%emt 0:02:08]} 10. Nbd2 {[%emt 0:09:01]} O-O {[%emt 0:04:04]} 11. e4 {[%emt 0:10:10]} c5 {[%emt 0:09:21]} 12. exd5 {[%emt 0:04:16]} Nxd5 {[%emt 0:04:17]} 13. c4 {[%emt 0:11:23]} Nb4 {[%emt 0:01:23]} 14. Ba3 {[%emt 0:01:18]} Rb8 {[%emt 0:02:02]} 15. d5 {[%emt 0:08:06]} exd5 {[%emt 0:05:19]} 16. Bxb4 {[%emt 0:02:05]} Rxb4 {[%emt 0:03:19]} 17. cxd5 {[%emt 0:00:13]} Bf6 {[%emt 0:03:00]} 18. Ra3 {[%emt 0:05:53]} Nb6 {[%emt 0:14:53]} 19. Ne5 {[%emt 0:05:59]} Bxe5 {[%emt 0:00:17]} 20. Rxe5 {[%emt 0:00:02]} Rd4 {[%emt 0:00:26]} 21. Qc2 {[%emt 0:00:36]} Nxd5 {[%emt 0:05:55]} 22. Nf3 {[%emt 0:06:05]} Rc4 {[%emt 0:09:42]} 23. Qb2 {[%emt 0:01:03]} Nb4 {[%emt 0:04:43]} 24. Qb1 {[%emt 0:04:58]} Rc2 {[%emt 0:05:10]} 25. Rb3 {[%emt 0:02:46]} Qc7 {[%emt 0:04:47]} 26. Ree3 {[%emt 0:01:27]} Rd8 {[%emt 0:01:22]} 27. h4 {[%emt 0:00:30]} h6 {[%emt 0:00:27]} 28. Ne1 {[%emt 0:00:28]} Rcd2 {[%emt 0:00:40]} 29. Qf5 {[%emt 0:00:32]} Bc8 {[%emt 0:01:15]} 30. Qh5 {[%emt 0:00:29]} Nd5 {[%emt 0:03:00]} 31. Re2 {[%emt 0:00:33]} Nf6 {[%emt 0:00:41]} 32. Qe5 {[%emt 0:00:01]} Qxe5 {[%emt 0:00:55]} 33. Rxe5 {[%emt 0:00:02]} Be6 {[%emt 0:01:50]} 34. Rb7 {[%emt 0:00:23]} c4 {[%emt 0:00:58]} 35. Rxa7 {[%emt 0:00:10]} Ng4 {[%emt 0:00:21]} 36. Re4 {[%emt 0:01:35]} Nxf2 {[%emt 0:00:11]} 37. Re3 {[%emt 0:00:49]} Ng4 {[%emt 0:00:17]} 38. Re4 {[%emt 0:00:28]} Rc8 {[%emt 0:00:55]} 39. Bf3 {[%emt 0:00:32]} Nf6 {[%emt 0:00:42]} 40. Re2 {[%emt 0:00:30]} c3 {[%emt 0:00:35]} 41. Nc2 {[%emt 0:02:31]} Bb3 {[%emt 0:05:24]} 42. Rxd2 {[%emt 0:01:56]} cxd2 {[%emt 0:00:07]} 43. Ne3 {[%emt 0:00:15]} Rc1+ {[%emt 0:02:54]} 44. Kf2 {[%emt 0:00:01]} d1=Q {[%emt 0:00:30]} 45. Ra8+ {[%emt 0:00:30]} Kh7 {[%emt 0:00:06]} 46. Nxd1 {[%emt 0:00:09]} Bxd1 {[%emt 0:00:08]} 0-1

[Event "23rd Hoogeveen Open 2019"]
[Site "Hoogeveen"]
[Date "2019.10.19"]
[Round "9"]
[White "Vogel, Jaap"]
[Black "Sindarov, Javokhir"]
[Result "0-1"]
[ECO "D00"]
[WhiteElo "2123"]
[BlackElo "2513"]
[Annotator "ChessBase"]
[PlyCount "72"]
[EventDate "2019.10.19"]
[EventType "swiss"]
[EventCountry "NED"]
[SourceTitle "playchess.com"]
[Source "ChessBase"]
[SourceQuality "1"]
[TimeControl "40/5400+30:1800+30"]

1. d4 {[%emt 0:00:00]} Nf6 {[%emt 0:00:00]} 2. Nf3 {[%emt 0:00:05]} g6 {[%emt 0:00:00]} 3. Bf4 {[%emt 0:01:39]} Bg7 {[%emt 0:00:00]} 4. Nc3 {[%emt 0:00:11]} d5 {[%emt 0:01:04]} 5. Nb5 {[%emt 0:05:02]} Na6 {[%emt 0:00:11]} 6. h3 {[%emt 0:00:46]} O-O {[%emt 0:01:42]} 7. e3 {[%emt 0:02:38]} c5 {[%emt 0:08:05]} 8. Be2 {[%emt 0:01:58]} Qa5+ {[%emt 0:02:50]} 9. c3 {[%emt 0:05:43]} c4 {[%emt 0:01:25]} 10. a4 {[%emt 0:07:26]} Bd7 {[%emt 0:01:20]} 11. O-O {[%emt 0:00:23]} Ne4 {[%emt 0:00:38]} 12. Nd2 Nxd2 {[%emt 0:02:00]} 13. Qxd2 {[%emt 0:09:42]} Rfc8 {[%emt 0:00:58]} 14. Bg5 {[%emt 0:16:02]} f6 {[%emt 0:17:32]} 15. Bf4 {[%emt 0:01:06]} Kh8 {[%emt 0:13:35]} 16. Bg3 {[%emt 0:13:40]} f5 {[%emt 0:10:28]} 17. Bh4 {[%emt 0:04:23]} Bxb5 {[%emt 0:14:44]} 18. axb5 {[%emt 0:02:14]} Qxb5 {[%emt 0:00:06]} 19. b3 {[%emt 0:04:24]} Qd7 {[%emt 0:00:21]} 20. bxc4 {[%emt 0:00:24]} dxc4 {[%emt 0:00:06]} 21. Qa2 {[%emt 0:00:50]} Nc7 {[%emt 0:00:54]} 22. Bxc4 {[%emt 0:04:37]} b5 {[%emt 0:00:12]} 23. Bb3 {[%emt 0:11:36]} a5 {[%emt 0:06:11]} 24. Qa3 {[%emt 0:03:00]} Bf8 {[%emt 0:06:27]} 25. c4 {[%emt 0:01:00]} a4 {[%emt 0:01:53]} 26. Ba2 {[%emt 0:00:41]} bxc4 {[%emt 0:00:06]} 27. Bxc4 {[%emt 0:00:34]} e6 {[%emt 0:00:03]} 28. Bf6+ {[%emt 0:01:04]} Kg8 {[%emt 0:00:06]} 29. Qd3 {[%emt 0:00:14]} Nd5 {[%emt 0:00:58]} 30. Be5 {[%emt 0:00:30]} a3 {[%emt 0:00:05]} 31. Rfc1 {[%emt 0:00:28]} Qc6 {[%emt 0:01:41]} 32. Qf1 {[%emt 0:00:12]} Qb7 {[%emt 0:00:39]} 33. Rcb1 {[%emt 0:00:29]} Qa7 {[%emt 0:00:48]} 34. Bxd5 {[%emt 0:01:33]} exd5 {[%emt 0:00:04]} 35. Qb5 {[%emt 0:00:05]} Qf7 {[%emt 0:00:16]} 36. Qb7 {[%emt 0:00:40]} Rc1+ {[%emt 0:00:22]} 0-1

[Event "23rd Hoogeveen Open 2019"]
[Site "Hoogeveen"]
[Date "2019.10.19"]
[Round "9"]
[White "Nicolai, Amir"]
[Black "Vrolijk, Liam"]
[Result "0-1"]
[ECO "A28"]
[WhiteElo "2117"]
[BlackElo "2478"]
[Annotator "ChessBase"]
[PlyCount "60"]
[EventDate "2019.10.19"]
[EventType "swiss"]
[EventCountry "NED"]
[SourceTitle "playchess.com"]
[Source "ChessBase"]
[SourceQuality "1"]
[TimeControl "40/5400+30:1800+30"]

1. c4 {[%emt 0:00:00]} e5 {[%emt 0:00:11]} 2. Nc3 {[%emt 0:00:00]} Nf6 {[%emt 0:00:05]} 3. Nf3 {[%emt 0:00:00]} Nc6 {[%emt 0:00:04]} 4. e4 {[%emt 0:00:00]} d6 {[%emt 0:02:18]} 5. d4 {[%emt 0:00:18]} Bg4 {[%emt 0:00:35]} 6. d5 {[%emt 0:00:42]} Nd4 {[%emt 0:01:28]} 7. Be2 {[%emt 0:00:07]} Nxe2 {[%emt 0:03:07]} 8. Qxe2 {[%emt 0:01:24]} g6 {[%emt 0:01:07]} 9. h3 {[%emt 0:03:12]} Bc8 {[%emt 0:02:52]} 10. Bg5 {[%emt 0:02:12]} Bg7 {[%emt 0:04:27]} 11. Nh2 {[%emt 0:06:51]} h6 {[%emt 0:06:24]} 12. Be3 {[%emt 0:01:34]} Nh5 {[%emt 0:01:22]} 13. g3 {[%emt 0:05:28]} O-O {[%emt 0:14:08]} 14. Ng4 {[%emt 0:09:11]} Kh7 {[%emt 0:00:44]} 15. O-O-O {[%emt 0:09:11]} a6 {[%emt 0:03:46]} 16. Rdg1 {[%emt 0:07:16]} Qe8 {[%emt 0:07:40]} 17. Qd2 {[%emt 0:21:45]} f5 {[%emt 0:01:52]} 18. Bxh6 {[%emt 0:00:54]} fxg4 {[%emt 0:03:32]} 19. Bxg7 {[%emt 0:00:47]} Kxg7 {[%emt 0:01:49]} 20. hxg4 {[%emt 0:00:44]} Bxg4 {[%emt 0:01:17]} 21. Rh4 {[%emt 0:00:10]} Bd7 {[%emt 0:03:56]} 22. f4 {[%emt 0:04:41]} Qe7 {[%emt 0:14:13]} 23. f5 {[%emt 0:04:15]} Rh8 {[%emt 0:03:14]} 24. Ne2 {[%emt 0:09:08]} Rag8 {[%emt 0:06:19]} 25. Rgh1 {[%emt 0:01:19]} Nxg3 {[%emt 0:02:31]} 26. Rxh8 {[%emt 0:04:07]} Nxe2+ {[%emt 0:00:24]} 27. Qxe2 {[%emt 0:00:58]} Rxh8 {[%emt 0:01:04]} 28. Rg1 {[%emt 0:00:16]} Be8 {[%emt 0:00:58]} 29. Qf2 {[%emt 0:00:11]} Qh4 {[%emt 0:00:56]} 30. Qa7 {[%emt 0:00:35]} Qf4+ {[%emt 0:00:11]} 0-1

[Event "23rd Hoogeveen Open 2019"]
[Site "Hoogeveen"]
[Date "2019.10.19"]
[Round "9"]
[White "Shakhverdian, William"]
[Black "Akash, Ganesan"]
[Result "0-1"]
[ECO "E11"]
[WhiteElo "2109"]
[BlackElo "2449"]
[Annotator "ChessBase"]
[PlyCount "194"]
[EventDate "2019.10.19"]
[EventType "swiss"]
[EventCountry "NED"]
[SourceTitle "playchess.com"]
[Source "ChessBase"]
[SourceQuality "1"]
[TimeControl "40/5400+30:1800+30"]

1. d4 {[%emt 0:00:00]} Nf6 {[%emt 0:00:00]} 2. c4 {[%emt 0:00:00]} e6 {[%emt 0:00:18]} 3. Nf3 {[%emt 0:00:51]} Bb4+ {[%emt 0:00:09]} 4. Bd2 {[%emt 0:01:24]} Qe7 {[%emt 0:01:07]} 5. a3 {[%emt 0:03:45]} Bxd2+ {[%emt 0:00:37]} 6. Qxd2 {[%emt 0:01:44]} b6 {[%emt 0:04:34]} 7. g3 {[%emt 0:03:25]} Bb7 {[%emt 0:03:22]} 8. Bg2 {[%emt 0:00:30]} O-O {[%emt 0:02:24]} 9. O-O {[%emt 0:00:35]} d6 {[%emt 0:01:18]} 10. Nc3 {[%emt 0:01:15]} Nbd7 {[%emt 0:00:24]} 11. Rad1 {[%emt 0:08:02]} Rfd8 {[%emt 0:04:18]} 12. Rfe1 {[%emt 0:05:25]} d5 {[%emt 0:08:53]} 13. Nh4 {[%emt 0:07:23]} Ne4 {[%emt 0:05:54]} 14. Qe3 {[%emt 0:05:09]} Ndf6 {[%emt 0:04:10]} 15. cxd5 {[%emt 0:02:45]} Nxc3 {[%emt 0:01:00]} 16. bxc3 {[%emt 0:10:04]} Bxd5 {[%emt 0:03:59]} 17. Qc1 {[%emt 0:03:18]} Bxg2 {[%emt 0:03:34]} 18. Nxg2 {[%emt 0:03:10]} Rd5 {[%emt 0:02:27]} 19. c4 {[%emt 0:03:35]} Ra5 {[%emt 0:04:09]} 20. Rd3 {[%emt 0:01:31]} e5 {[%emt 0:03:44]} 21. d5 {[%emt 0:05:49]} Ne4 {[%emt 0:05:43]} 22. Re3 {[%emt 0:06:23]} Nd6 {[%emt 0:05:02]} 23. Rc3 {[%emt 0:01:58]} f5 {[%emt 0:04:54]} 24. c5 {[%emt 0:04:23]} Ne4 {[%emt 0:00:51]} 25. d6 {[%emt 0:02:35]} cxd6 {[%emt 0:05:31]} 26. cxd6 {[%emt 0:00:13]} Qe6 {[%emt 0:03:04]} 27. Rc7 {[%emt 0:03:51]} Rc5 {[%emt 0:01:52]} 28. Rxc5 {[%emt 0:00:22]} Nxc5 {[%emt 0:00:11]} 29. Rd1 {[%emt 0:01:20]} Rd8 {[%emt 0:00:44]} 30. Qd2 {[%emt 0:04:19]} Ne4 {[%emt 0:04:27]} 31. Qb4 {[%emt 0:02:16]} Rxd6 {[%emt 0:02:06]} 32. Rxd6 {[%emt 0:00:13]} Nxd6 {[%emt 0:00:07]} 33. Ne3 {[%emt 0:00:33]} h6 {[%emt 0:03:05]} 34. a4 {[%emt 0:00:27]} Nb7 {[%emt 0:05:08]} 35. Qb1 {[%emt 0:00:56]} g6 {[%emt 0:00:58]} 36. Qd3 {[%emt 0:01:41]} Nd6 {[%emt 0:01:46]} 37. Nd5 {[%emt 0:02:36]} Nf7 {[%emt 0:02:49]} 38. h4 {[%emt 0:03:32]} Kg7 {[%emt 0:00:59]} 39. Nc7 {[%emt 0:00:41]} Qc6 {[%emt 0:01:15]} 40. Nb5 {[%emt 0:00:42]} a6 {[%emt 0:01:53]} 41. Nc3 {[%emt 0:30:12]} Nd6 {[%emt 0:04:38]} 42. Nd5 {[%emt 0:00:00]} Qc5 {[%emt 0:04:23]} 43. Ne3 {[%emt 0:00:00]} b5 {[%emt 0:02:01]} 44. axb5 {[%emt 0:00:00]} axb5 {[%emt 0:00:10]} 45. h5 {[%emt 0:00:00]} Qd4 {[%emt 0:04:46]} 46. Qc2 {[%emt 0:00:00]} Nc4 {[%emt 0:04:01]} 47. Ng2 {[%emt 0:00:00]} Qb2 {[%emt 0:04:36]} 48. Qd3 {[%emt 0:00:00]} Qa1+ {[%emt 0:01:47]} 49. Kh2 {[%emt 0:00:00]} Qd4 {[%emt 0:00:10]} 50. Qb3 {[%emt 0:00:00]} Qc5 {[%emt 0:01:33]} 51. hxg6 {[%emt 0:00:00]} Kxg6 {[%emt 0:00:16]} 52. Qf3 {[%emt 0:00:00]} Nd6 {[%emt 0:01:18]} 53. Nh4+ {[%emt 0:00:00]} Kf6 {[%emt 0:01:00]} 54. e4 {[%emt 0:03:08]} Qd4 {[%emt 0:02:10]} 55. exf5 {[%emt 0:01:07]} b4 {[%emt 0:01:40]} 56. Ng2 {[%emt 0:00:49]} Qe4 {[%emt 0:01:03]} 57. Qd1 {[%emt 0:01:36]} Nxf5 {[%emt 0:00:55]} 58. Qd8+ {[%emt 0:00:22]} Ke6 {[%emt 0:01:12]} 59. Qb6+ {[%emt 0:01:22]} Nd6 {[%emt 0:01:13]} 60. Ne3 {[%emt 0:00:02]} Qb7 {[%emt 0:01:20]} 61. Qc5 {[%emt 0:01:21]} b3 {[%emt 0:00:50]} 62. Qc1 {[%emt 0:01:37]} b2 {[%emt 0:00:34]} 63. Qb1 {[%emt 0:00:06]} e4 {[%emt 0:00:34]} 64. Nd1 {[%emt 0:00:42]} Nc4 {[%emt 0:00:10]} 65. Nc3 {[%emt 0:00:33]} Nd2 {[%emt 0:00:44]} 66. Qc2 {[%emt 0:00:48]} b1=Q {[%emt 0:00:35]} 67. Nxb1 {[%emt 0:00:11]} Nxb1 {[%emt 0:00:04]} 68. Qc4+ {[%emt 0:00:09]} Ke5 {[%emt 0:00:48]} 69. Qc5+ {[%emt 0:00:09]} Ke6 {[%emt 0:00:19]} 70. Qc4+ {[%emt 0:00:57]} Kd6 {[%emt 0:00:14]} 71. Qd4+ {[%emt 0:00:08]} Kc7 {[%emt 0:00:14]} 72. Qe5+ {[%emt 0:00:20]} Kb6 {[%emt 0:00:23]} 73. Qd4+ {[%emt 0:00:23]} Kb5 {[%emt 0:00:33]} 74. Qb2+ {[%emt 0:01:08]} Kc6 {[%emt 0:00:05]} 75. Qf6+ {[%emt 0:00:17]} Kd5 {[%emt 0:00:15]} 76. Qxh6 {[%emt 0:01:02]} Nc3 {[%emt 0:00:29]} 77. Qe3 {[%emt 0:00:38]} Qb2 {[%emt 0:01:04]} 78. Kg1 {[%emt 0:00:39]} Ne2+ {[%emt 0:00:55]} 79. Kg2 {[%emt 0:00:27]} Nd4 {[%emt 0:00:11]} 80. Qg5+ {[%emt 0:00:13]} Kc4 {[%emt 0:00:12]} 81. Qe3 {[%emt 0:00:43]} Qe2 {[%emt 0:01:03]} 82. Qc1+ {[%emt 0:00:37]} Nc2 {[%emt 0:00:22]} 83. Qh6 {[%emt 0:00:23]} Qf3+ {[%emt 0:01:08]} 84. Kg1 {[%emt 0:00:03]} Qd1+ {[%emt 0:00:39]} 85. Kh2 {[%emt 0:00:50]} Qf3 {[%emt 0:00:35]} 86. Kg1 {[%emt 0:00:03]} Nd4 {[%emt 0:00:20]} 87. Qc1+ {[%emt 0:01:11]} Qc3 {[%emt 0:00:36]} 88. Qf1+ {[%emt 0:00:25]} Kd5 {[%emt 0:00:28]} 89. Qd1 {[%emt 0:00:35]} Qd3 {[%emt 0:00:28]} 90. Qh5+ {[%emt 0:00:17]} Kc4 {[%emt 0:00:05]} 91. Qf7+ {[%emt 0:00:19]} Kc3 {[%emt 0:00:05]} 92. Qa2 {[%emt 0:00:14]} Qd1+ {[%emt 0:00:58]} 93. Kg2 {[%emt 0:00:08]} Qf3+ {[%emt 0:00:18]} 94. Kh2 {[%emt 0:01:32]} Ne2 {[%emt 0:00:38]} 95. Qa5+ {[%emt 0:00:24]} Kd3 {[%emt 0:00:27]} 96. Qd5+ {[%emt 0:00:35]} Kc2 {[%emt 0:00:12]} 97. Qc5+ {[%emt 0:00:27]} Kd1 {[%emt 0:00:25]} 0-1

[Event "23rd Hoogeveen Open 2019"]
[Site "Hoogeveen"]
[Date "2019.10.19"]
[Round "9"]
[White "Takawira, Erick"]
[Black "Harutjunyan, Gevorg"]
[Result "0-1"]
[ECO "B42"]
[WhiteElo "2101"]
[BlackElo "2428"]
[Annotator "ChessBase"]
[PlyCount "56"]
[EventDate "2019.10.19"]
[EventType "swiss"]
[EventCountry "NED"]
[SourceTitle "playchess.com"]
[Source "ChessBase"]
[SourceQuality "1"]
[TimeControl "40/5400+30:1800+30"]

1. e4 {[%emt 0:00:00]} c5 {[%emt 0:00:01]} 2. Nf3 {[%emt 0:00:07]} e6 {[%emt 0:00:06]} 3. d4 {[%emt 0:00:26]} cxd4 {[%emt 0:00:06]} 4. Nxd4 {[%emt 0:00:07]} a6 {[%emt 0:00:14]} 5. Bd3 {[%emt 0:00:07]} Bc5 {[%emt 0:00:19]} 6. Nb3 {[%emt 0:00:08]} Be7 {[%emt 0:00:08]} 7. O-O {[%emt 0:01:11]} d6 {[%emt 0:00:59]} 8. Qe2 {[%emt 0:01:44]} Nf6 {[%emt 0:04:39]} 9. c4 {[%emt 0:04:22]} Nc6 {[%emt 0:02:12]} 10. Nc3 {[%emt 0:00:04]} Ne5 {[%emt 0:03:08]} 11. Bf4 {[%emt 0:08:43]} Nfd7 {[%emt 0:05:02]} 12. Rad1 {[%emt 0:03:19]} Qc7 {[%emt 0:01:19]} 13. Nd2 {[%emt 0:22:35]} b6 {[%emt 0:07:47]} 14. Nf3 {[%emt 0:14:21]} Bb7 {[%emt 0:04:42]} 15. Rc1 {[%emt 0:04:51]} h5 {[%emt 0:11:11]} 16. Nxe5 {[%emt 0:01:26]} Nxe5 {[%emt 0:00:30]} 17. b4 {[%emt 0:05:18]} Rc8 {[%emt 0:06:34]} 18. Bxe5 {[%emt 0:03:38]} dxe5 {[%emt 0:00:17]} 19. a3 {[%emt 0:02:05]} h4 {[%emt 0:00:29]} 20. h3 {[%emt 0:00:05]} O-O {[%emt 0:00:29]} 21. Qe3 {[%emt 0:06:42]} Rfd8 {[%emt 0:03:12]} 22. Rfd1 {[%emt 0:00:08]} Rd4 {[%emt 0:00:57]} 23. Ne2 {[%emt 0:02:03]} Rd7 {[%emt 0:02:03]} 24. Bc2 {[%emt 0:10:04]} Rxd1+ {[%emt 0:02:27]} 25. Bxd1 {[%emt 0:00:04]} Qd8 {[%emt 0:01:00]} 26. Qc3 {[%emt 0:06:24]} Bg5 {[%emt 0:01:57]} 27. Ra1 {[%emt 0:01:05]} Bxe4 {[%emt 0:00:41]} 28. Bb3 {[%emt 0:00:56]} Qd3 {[%emt 0:03:49]} 0-1